[Event "4. Memorial Svat.Hastika OPEN"]
[Site "Jesenik, Czech Republic"]
[Date "2022.09.03"]
[Round "9.7"]
[White "Pobucky, Ondrej"]
[Black "Zrubek, Adam"]
[Result "0-1"]
[TimeControl "720+3"]
[WhiteFideId "23742305"]
[BlackFideId "23718706"]
[WhiteElo "1426"]
[BlackElo "1583"]

1. e4 {[%clk 00:12:03]} {[%emt 00:00:02]} c5 {[%clk 00:11:58]} {[%emt
00:00:08]} 2. d4 {[%clk 00:12:04]} {[%emt 00:00:03]} cxd4 {[%clk 00:11:58]}
{[%emt 00:00:03]} 3. Qxd4 {[%clk 00:12:05]} {[%emt 00:00:02]} Nc6 {[%clk
00:11:57]} {[%emt 00:00:05]} 4. Qd1 {[%clk 00:12:06]} {[%emt 00:00:02]} g6
{[%clk 00:11:55]} {[%emt 00:00:05]} 5. Nf3 {[%clk 00:11:53]} {[%emt 00:00:16]}
Bg7 {[%clk 00:11:54]} {[%emt 00:00:03]} 6. c3 {[%clk 00:11:31]} {[%emt
00:00:25]} d6 {[%clk 00:11:48]} {[%emt 00:00:09]} 7. Nbd2 {[%clk 00:11:32]}
{[%emt 00:00:03]} Nf6 {[%clk 00:11:45]} {[%emt 00:00:06]} 8. Bd3 {[%clk
00:11:28]} {[%emt 00:00:07]} O-O {[%clk 00:11:30]} {[%emt 00:00:17]} 9. O-O
{[%clk 00:11:23]} {[%emt 00:00:08]} b6 {[%clk 00:11:24]} {[%emt 00:00:09]} 10.
Nb3 {[%clk 00:11:24]} {[%emt 00:00:02]} Bb7 {[%clk 00:11:20]} {[%emt 00:00:08]}
11. Re1 {[%clk 00:11:17]} {[%emt 00:00:10]} Nd7 {[%clk 00:10:53]} {[%emt
00:00:29]} 12. Be3 {[%clk 00:10:44]} {[%emt 00:00:36]} Nc5 {[%clk 00:09:57]}
{[%emt 00:01:00]} 13. Bb5 {[%clk 00:09:34]} {[%emt 00:01:12]} Ne5 {[%clk
00:08:30]} {[%emt 00:01:30]} 14. Nxe5 {[%clk 00:09:25]} {[%emt 00:00:12]} Bxe5
{[%clk 00:08:27]} {[%emt 00:00:06]} 15. Bd4 {[%clk 00:09:22]} {[%emt 00:00:05]}
Bxd4 {[%clk 00:07:11]} {[%emt 00:01:21]} 16. cxd4 {[%clk 00:09:23]} {[%emt
00:00:02]} Nxe4 {[%clk 00:06:15]} {[%emt 00:00:59]} 17. Nd2 {[%clk 00:09:02]}
{[%emt 00:00:24]} Nxd2 {[%clk 00:05:54]} {[%emt 00:00:24]} 18. Qxd2 {[%clk
00:09:03]} {[%emt 00:00:02]} Rc8 {[%clk 00:05:31]} {[%emt 00:00:26]} 19. Qe3
{[%clk 00:08:21]} {[%emt 00:00:45]} e6 {[%clk 00:05:11]} {[%emt 00:00:22]} 20.
Rac1 {[%clk 00:07:55]} {[%emt 00:00:29]} Qe7 {[%clk 00:04:26]} {[%emt
00:00:49]} 21. Qe2 {[%clk 00:07:43]} {[%emt 00:00:15]} Bd5 {[%clk 00:04:03]}
{[%emt 00:00:26]} 22. b3 {[%clk 00:07:24]} {[%emt 00:00:22]} Qg5 {[%clk
00:03:24]} {[%emt 00:00:41]} 23. f4 {[%clk 00:05:57]} {[%emt 00:01:30]} Qxf4
{[%clk 00:03:04]} {[%emt 00:00:24]} 24. Rc3 {[%emt 00:00:04]} Rc7 25. Rxc7
{[%clk 00:05:55]} Qe4 {[%emt 00:00:14]} 26. Rc8 Qxd4+ {[%clk 00:02:53]} 27. Kh1
{[%clk 00:05:42]} {[%emt 00:00:16]} Rxc8 {[%clk 00:02:46]} {[%emt 00:00:10]} 28.
Rf1 {[%clk 00:03:36]} {[%emt 00:02:09]} Qe4 {[%clk 00:02:27]} {[%emt 00:00:22]}
29. Qf2 {[%clk 00:03:19]} {[%emt 00:00:20]} e5 {[%clk 00:01:16]} {[%emt
00:01:14]} 30. Bc4 {[%clk 00:02:58]} {[%emt 00:00:25]} Bxc4 {[%clk 00:01:11]}
{[%emt 00:00:08]} 31. bxc4 {[%clk 00:03:00]} {[%emt 00:00:01]} Rc7 {[%clk
00:01:06]} {[%emt 00:00:08]} 32. Qf6 {[%clk 00:02:55]} {[%emt 00:00:08]} Rd7
{[%clk 00:00:43]} {[%emt 00:00:26]} 33. Rc1 {[%clk 00:02:24]} {[%emt 00:00:34]}
Qf4 {[%clk 00:00:15]} {[%emt 00:00:30]} 34. Qxf4 {[%clk 00:01:51]} {[%emt
00:00:36]} exf4 {[%clk 00:00:17]} {[%emt 00:00:02]} 35. Kg1 {[%clk 00:01:47]}
{[%emt 00:00:06]} Rc7 {[%clk 00:00:13]} {[%emt 00:00:07]} 36. Rd1 {[%clk
00:01:37]} {[%emt 00:00:13]} Rxc4 {[%clk 00:00:07]} {[%emt 00:00:10]} 37. Rxd6
{[%clk 00:01:39]} Rc1+ {[%clk 00:00:06]} {[%emt 00:00:04]} 38. Kf2 {[%clk
00:01:41]} Rc2+ {[%clk 00:00:05]} {[%emt 00:00:04]} 39. Kf3 {[%clk 00:01:42]}
Rxa2 {[%clk 00:00:07]} {[%emt 00:00:01]} 40. Rd1 {[%clk 00:01:08]} {[%emt
00:00:37]} b5 {[%clk 00:00:05]} {[%emt 00:00:05]} 41. Rg1 {[%clk 00:01:10]}
{[%emt 00:00:02]} a5 {[%clk 00:00:05]} {[%emt 00:00:03]} 42. Kxf4 {[%clk
00:01:11]} {[%emt 00:00:02]} b4 {[%clk 00:00:07]} {[%emt 00:00:01]} 43. Ke4
{[%clk 00:01:09]} {[%emt 00:00:05]} Rd2 {[%clk 00:00:04]} {[%emt 00:00:04]} 44.
Ke3 {[%clk 00:01:11]} {[%emt 00:00:02]} Rd8 {[%clk 00:00:06]} {[%emt 00:00:02]}
45. Ra1 {[%clk 00:01:13]} {[%emt 00:00:01]} Ra8 {[%clk 00:00:05]} {[%emt
00:00:04]} 46. Kd3 {[%clk 00:01:11]} {[%emt 00:00:04]} Kg7 {[%clk 00:00:07]}
{[%emt 00:00:02]} 47. Kc4 {[%clk 00:01:13]} f5 {[%clk 00:00:07]} {[%emt
00:00:03]} 48. Rd1 {[%clk 00:01:08]} {[%emt 00:00:07]} Kf6 {[%clk 00:00:05]}
{[%emt 00:00:05]} 49. Rd7 {[%clk 00:01:07]} {[%emt 00:00:04]} h6 {[%clk
00:00:05]} {[%emt 00:00:03]} 50. Rd6+ {[%clk 00:01:03]} {[%emt 00:00:07]} Kg5
{[%clk 00:00:07]} 51. Rd4 {[%clk 00:00:43]} {[%emt 00:00:23]} h5 {[%clk
00:00:05]} {[%emt 00:00:06]} 52. h4+ {[%clk 00:00:43]} {[%emt 00:00:02]} Kh6
{[%clk 00:00:05]} {[%emt 00:00:03]} 53. Rd6 {[%clk 00:00:45]} {[%emt 00:00:02]}
Rb8 {[%clk 00:00:07]} 54. Kb3 {[%clk 00:00:44]} {[%emt 00:00:04]} Rc8 {[%clk
00:00:05]} {[%emt 00:00:05]} 55. Ka4 {[%clk 00:00:35]} {[%emt 00:00:12]} Rc4
{[%clk 00:00:05]} {[%emt 00:00:03]} 56. Kxa5 {[%clk 00:00:30]} {[%emt
00:00:09]} Rxh4 {[%clk 00:00:07]} 57. Ka4 {[%clk 00:00:29]} {[%emt 00:00:04]}
Kg5 {[%clk 00:00:06]} {[%emt 00:00:04]} 58. Rd3 {[%clk 00:00:26]} {[%emt
00:00:05]} Re4 {[%clk 00:00:04]} {[%emt 00:00:05]} 59. Rg3+ {[%clk 00:00:21]}
{[%emt 00:00:08]} Kf6 {[%clk 00:00:06]} {[%emt 00:00:02]} 60. Rd3 {[%clk
00:00:20]} {[%emt 00:00:04]} f4 {[%clk 00:00:06]} {[%emt 00:00:02]} 61. Rd6+
{[%clk 00:00:19]} {[%emt 00:00:04]} Kf5 {[%clk 00:00:07]} {[%emt 00:00:02]} 62.
Rd5+ {[%clk 00:00:21]} {[%emt 00:00:01]} Kg4 {[%clk 00:00:09]} {[%emt
00:00:01]} 63. Rd3 {[%clk 00:00:22]} {[%emt 00:00:02]} g5 {[%clk 00:00:08]}
{[%emt 00:00:04]} 64. Kb3 {[%clk 00:00:23]} {[%emt 00:00:02]} Re2 {[%emt
00:00:06]} 65. Re3 {[%clk 00:00:22]} 0-1

[Event "4. Memorial Svat.Hastika OPEN"]
[Site "Jesenik, Czech Republic"]
[Date "2022.09.03"]
[Round "9.8"]
[White "Kincl, Dobromir"]
[Black "Zamarsky, Patrik"]
[Result "1/2-1/2"]
[TimeControl "720+3"]
[BlackFideId "23714280"]
[WhiteElo "1683"]
[BlackElo "1216"]

1. d4 {[%clk 00:12:05]} e6 {[%clk 00:12:04]} {[%emt 00:00:02]} 2. Nf3 {[%clk
00:12:03]} {[%emt 00:00:05]} d5 {[%clk 00:12:05]} {[%emt 00:00:02]} 3. c4
{[%clk 00:12:05]} {[%emt 00:00:01]} Nf6 {[%clk 00:12:05]} {[%emt 00:00:04]} 4.
Bg5 {[%clk 00:11:52]} {[%emt 00:00:15]} Be7 {[%clk 00:12:05]} {[%emt 00:00:03]}
5. e3 {[%clk 00:11:52]} {[%emt 00:00:04]} O-O {[%clk 00:12:05]} {[%emt
00:00:03]} 6. Bd3 {[%clk 00:11:53]} {[%emt 00:00:01]} dxc4 {[%clk 00:11:52]}
{[%emt 00:00:16]} 7. Bxc4 {[%clk 00:11:53]} {[%emt 00:00:02]} Nc6 {[%clk
00:11:39]} {[%emt 00:00:17]} 8. Nc3 {[%clk 00:11:42]} {[%emt 00:00:14]} b6
{[%clk 00:11:37]} {[%emt 00:00:05]} 9. e4 {[%clk 00:10:45]} {[%emt 00:01:00]}
Bb7 {[%clk 00:10:33]} {[%emt 00:01:07]} 10. O-O {[%clk 00:10:19]} {[%emt
00:00:28]} Na5 {[%clk 00:10:10]} {[%emt 00:00:27]} 11. Bd3 {[%clk 00:09:42]}
{[%emt 00:00:37]} h6 {[%clk 00:09:42]} {[%emt 00:00:34]} 12. Bh4 {[%clk
00:09:21]} {[%emt 00:00:23]} Re8 {[%clk 00:09:11]} {[%emt 00:00:34]} 13. Qe2
{[%clk 00:09:07]} {[%emt 00:00:17]} Nc6 {[%clk 00:08:37]} {[%emt 00:00:38]} 14.
e5 {[%clk 00:07:24]} {[%emt 00:01:46]} Nd5 {[%clk 00:06:55]} {[%emt 00:01:44]}
15. Qe4 {[%clk 00:06:19]} {[%emt 00:01:07]} g6 {[%clk 00:06:50]} {[%emt
00:00:10]} 16. Nxd5 {[%clk 00:05:57]} {[%emt 00:00:25]} exd5 {[%emt 00:01:59]}
17. Qg4 {[%emt 00:00:05]} g5 18. Qe4 {[%emt 00:00:05]} 1/2-1/2

[Event "4. Memorial Svat.Hastika OPEN"]
[Site "Jesenik, Czech Republic"]
[Date "2022.09.03"]
[Round "9.9"]
[White "Haidenko, Mykola"]
[Black "Poljak, Lucian"]
[Result "1-0"]
[TimeControl "720+3"]
[WhiteFideId "23731958"]
[BlackFideId "23740590"]
[WhiteElo "1429"]
[BlackElo "1367"]

1. e4 {[%clk 00:12:05]} b6 {[%clk 00:11:58]} {[%emt 00:00:08]} 2. b3 {[%clk
00:10:54]} {[%emt 00:01:14]} Bb7 {[%clk 00:11:57]} {[%emt 00:00:05]} 3. d3
{[%clk 00:10:55]} {[%emt 00:00:02]} e6 {[%clk 00:11:56]} {[%emt 00:00:04]} 4.
Bb2 {[%clk 00:10:43]} {[%emt 00:00:15]} d5 {[%clk 00:11:47]} {[%emt 00:00:12]}
5. Nd2 {[%clk 00:10:17]} {[%emt 00:00:28]} Bb4 {[%emt 00:00:16]} 6. Bxg7 {[%clk
00:10:15]} {[%emt 00:00:04]} dxe4 {[%clk 00:11:15]} {[%emt 00:00:23]} 7. dxe4
{[%clk 00:10:11]} {[%emt 00:00:07]} Bxe4 {[%clk 00:11:09]} {[%emt 00:00:09]} 8.
c3 {[%clk 00:10:13]} {[%emt 00:00:02]} Bxc3 {[%clk 00:09:32]} {[%emt 00:01:40]}
9. Bxc3 {[%clk 00:10:14]} {[%emt 00:00:02]} Qd5 {[%clk 00:09:34]} 10. f3 {[%clk
00:08:32]} {[%emt 00:01:45]} Qc5 {[%clk 00:09:05]} {[%emt 00:00:32]} 11. Nxe4
{[%clk 00:07:34]} {[%emt 00:01:00]} Qe7 {[%clk 00:08:21]} {[%emt 00:00:47]} 12.
Bxh8 {[%clk 00:07:27]} {[%emt 00:00:11]} f5 {[%clk 00:08:13]} {[%emt 00:00:11]}
13. Nf2 {[%clk 00:07:06]} {[%emt 00:00:24]} Qb4+ {[%clk 00:08:09]} {[%emt
00:00:07]} 14. Qd2 {[%clk 00:07:01]} {[%emt 00:00:08]} Qc5 {[%clk 00:07:42]}
{[%emt 00:00:30]} 15. Bc4 {[%clk 00:06:38]} {[%emt 00:00:26]} Ke7 {[%clk
00:07:19]} {[%emt 00:00:26]} 16. Ne2 {[%clk 00:06:33]} {[%emt 00:00:09]} Nf6
{[%clk 00:06:51]} {[%emt 00:00:30]} 17. Bxf6+ {[%clk 00:05:51]} {[%emt
00:00:44]} Kxf6 {[%clk 00:06:52]} {[%emt 00:00:02]} 18. Qd4+ {[%clk 00:05:53]}
Qxd4 {[%clk 00:06:53]} {[%emt 00:00:02]} 19. Nxd4 {[%emt 00:00:03]} Nd7 {[%clk
00:06:45]} {[%emt 00:00:09]} 20. O-O {[%clk 00:05:46]} {[%emt 00:00:12]} c5
{[%clk 00:06:45]} {[%emt 00:00:02]} 21. Nxe6 {[%clk 00:05:46]} {[%emt
00:00:03]} Re8 {[%clk 00:06:46]} {[%emt 00:00:02]} 22. Rfe1 {[%clk 00:05:45]}
{[%emt 00:00:05]} Ne5 {[%clk 00:06:40]} {[%emt 00:00:09]} 23. Nf4 {[%clk
00:05:32]} {[%emt 00:00:15]} Rg8 {[%clk 00:06:08]} {[%emt 00:00:35]} 24. N2d3
{[%clk 00:05:27]} {[%emt 00:00:09]} Nxc4 {[%clk 00:05:52]} {[%emt 00:00:19]} 25.
bxc4 {[%clk 00:05:28]} {[%emt 00:00:02]} Kg5 {[%clk 00:05:48]} {[%emt
00:00:07]} 26. Kf2 {[%clk 00:05:30]} h5 {[%clk 00:05:45]} {[%emt 00:00:05]} 27.
Re6 {[%clk 00:05:17]} {[%emt 00:00:16]} Kh4 {[%clk 00:05:32]} {[%emt 00:00:17]}
28. g3+ {[%clk 00:05:18]} {[%emt 00:00:03]} Kg5 {[%clk 00:05:30]} {[%emt
00:00:05]} 29. h4# {[%clk 00:05:16]} 1-0

[Event "4. Memorial Svat.Hastika OPEN"]
[Site "Jesenik, Czech Republic"]
[Date "2022.09.03"]
[Round "9.10"]
[White "Ondrackova, Veronika"]
[Black "Koterova, Hana"]
[Result "1-0"]
[TimeControl "720+3"]
[WhiteFideId "23739983"]
[WhiteElo "1213"]
[BlackElo "1309"]

1. e4 {[%clk 00:12:05]} e6 {[%clk 00:11:57]} {[%emt 00:00:10]} 2. d4 {[%clk
00:12:06]} Nf6 {[%clk 00:11:55]} {[%emt 00:00:05]} 3. Nc3 {[%clk 00:12:05]}
{[%emt 00:00:05]} Bb4 {[%clk 00:11:55]} {[%emt 00:00:03]} 4. Bd3 {[%clk
00:11:38]} {[%emt 00:00:30]} Nc6 {[%clk 00:11:46]} {[%emt 00:00:12]} 5. Nf3
{[%clk 00:11:30]} {[%emt 00:00:11]} O-O {[%clk 00:11:41]} {[%emt 00:00:08]} 6.
O-O {[%clk 00:11:26]} {[%emt 00:00:07]} Bxc3 {[%clk 00:11:31]} {[%emt
00:00:12]} 7. bxc3 {[%clk 00:11:27]} {[%emt 00:00:02]} b6 {[%clk 00:11:14]}
{[%emt 00:00:20]} 8. e5 {[%clk 00:10:47]} {[%emt 00:00:44]} Nd5 {[%clk
00:11:10]} {[%emt 00:00:06]} 9. Ng5 {[%clk 00:09:37]} {[%emt 00:01:13]} g6
{[%clk 00:10:37]} {[%emt 00:00:36]} 10. c4 {[%clk 00:06:25]} {[%emt 00:03:16]}
Nc3 {[%clk 00:10:32]} {[%emt 00:00:08]} 11. Qd2 {[%emt 00:00:50]} Na4 {[%clk
00:07:56]} {[%emt 00:02:21]} 12. Nxh7 {[%clk 00:05:35]} {[%emt 00:00:24]} Kxh7
{[%clk 00:07:27]} {[%emt 00:00:32]} 13. Qh6+ {[%clk 00:05:36]} {[%emt
00:00:02]} Kg8 {[%clk 00:07:28]} {[%emt 00:00:02]} 14. Bg5 {[%clk 00:05:36]}
{[%emt 00:00:03]} Qxg5 {[%clk 00:06:55]} {[%emt 00:00:36]} 15. Qxg5 {[%clk
00:05:34]} {[%emt 00:00:05]} Nxd4 {[%clk 00:06:54]} {[%emt 00:00:04]} 16. f4
{[%clk 00:05:06]} {[%emt 00:00:30]} Nf5 {[%clk 00:06:33]} {[%emt 00:00:24]} 17.
Bxf5 {[%clk 00:04:39]} {[%emt 00:00:31]} exf5 {[%clk 00:06:34]} {[%emt
00:00:02]} 18. h4 {[%clk 00:04:26]} {[%emt 00:00:16]} Kg7 {[%clk 00:05:58]}
{[%emt 00:00:38]} 19. Rf3 {[%clk 00:04:03]} {[%emt 00:00:27]} f6 {[%clk
00:05:12]} {[%emt 00:00:50]} 20. exf6+ {[%clk 00:03:55]} {[%emt 00:00:10]} Rxf6
{[%clk 00:05:13]} {[%emt 00:00:02]} 21. h5 {[%emt 00:00:20]} Re6 {[%clk
00:04:49]} {[%emt 00:00:25]} 22. Rg3 {[%clk 00:03:03]} {[%emt 00:00:40]} Bb7
{[%clk 00:04:31]} {[%emt 00:00:21]} 23. Qxf5 {[%clk 00:02:23]} {[%emt
00:00:41]} Rh8 {[%clk 00:04:17]} {[%emt 00:00:17]} 24. Rxg6+ {[%clk 00:02:14]}
{[%emt 00:00:14]} Rxg6 {[%clk 00:03:39]} {[%emt 00:00:40]} 25. Qxg6+ {[%clk
00:02:15]} {[%emt 00:00:02]} Kf8 {[%clk 00:03:41]} 26. Re1 {[%clk 00:02:11]}
{[%emt 00:00:08]} Rg8 {[%clk 00:02:54]} {[%emt 00:00:50]} 27. Re8# {[%clk
00:02:11]} {[%emt 00:00:03]} 1-0